[Event "GrandPrix_29.05"]
[Site "Chess.com"]
[Date "2020.05.29"]
[Round "3"]
[White "Sporty207"]
[Black "WhiteCapital80"]
[Result "1/2-1/2"]
[WhiteElo "2229"]
[BlackElo "2120"]
[TimeControl "600+2"]
[EndTime "10:15:09 PDT"]
[Termination "Game drawn by agreement"]

1. d4 {[%clk 0:10:01.9]} 1... e6 {[%clk 0:09:58.5]} 2. c4 {[%clk 0:10:03.8]}
2... d5 {[%clk 0:09:58]} 3. Nc3 {[%clk 0:10:04.2]} 3... Be7 {[%clk 0:09:58.6]}
4. Nf3 {[%clk 0:09:57.8]} 4... Nf6 {[%clk 0:09:58.8]} 5. cxd5 {[%clk 0:09:58.8]}
5... exd5 {[%clk 0:09:59.6]} 6. Bg5 {[%clk 0:09:59.8]} 6... c6 {[%clk 0:10:00]}
7. e3 {[%clk 0:10:00.8]} 7... Bf5 {[%clk 0:10:00.4]} 8. Bd3 {[%clk 0:09:56.3]}
8... Bxd3 {[%clk 0:10:00.8]} 9. Qxd3 {[%clk 0:09:57.8]} 9... Nbd7 {[%clk
0:10:02.2]} 10. h3 {[%clk 0:09:52.4]} 10... O-O {[%clk 0:10:02.8]} 11. O-O
{[%clk 0:09:52.9]} 11... Re8 {[%clk 0:10:03.4]} 12. Rab1 {[%clk 0:09:41.5]}
12... a5 {[%clk 0:10:04.1]} 13. a3 {[%clk 0:09:41.6]} 13... Ne4 {[%clk
0:10:00.8]} 14. Bf4 {[%clk 0:09:21.8]} 14... Bd6 {[%clk 0:09:31.6]} 15. Rfc1
{[%clk 0:08:37.1]} 15... Bxf4 {[%clk 0:09:16.2]} 16. exf4 {[%clk 0:08:37.1]}
16... Nxc3 {[%clk 0:08:04.2]} 17. bxc3 {[%clk 0:08:27.4]} 17... Qc7 {[%clk
0:08:04.6]} 18. Ne5 {[%clk 0:08:25.7]} 18... f6 {[%clk 0:08:04.6]} 19. Nxd7
{[%clk 0:07:56.7]} 19... Qxd7 {[%clk 0:08:05.1]} 20. Re1 {[%clk 0:07:29.6]}
20... Qd6 {[%clk 0:07:44.9]} 21. g3 {[%clk 0:06:51.1]} 21... Qxa3 {[%clk
0:07:38.5]} 22. Rxe8+ {[%clk 0:06:45]} 22... Rxe8 {[%clk 0:07:38.7]} 23. Rxb7
{[%clk 0:06:46.6]} 1/2-1/2

[Event "GrandPrix_29.05"]
[Site "Chess.com"]
[Date "2020.05.29"]
[Round "3"]
[White "kotmizer"]
[Black "Zhuu96"]
[Result "0-1"]
[WhiteElo "2198"]
[BlackElo "2623"]
[TimeControl "600+2"]
[EndTime "10:15:17 PDT"]
[Termination "Zhuu96 won by resignation"]

1. e4 {[%clk 0:10:01.9]} 1... e5 {[%clk 0:09:52]} 2. Bc4 {[%clk 0:10:02]} 2...
Nf6 {[%clk 0:09:51.1]} 3. d3 {[%clk 0:10:03.3]} 3... c6 {[%clk 0:09:49.4]} 4.
Nf3 {[%clk 0:10:03.6]} 4... d5 {[%clk 0:09:50.1]} 5. Bb3 {[%clk 0:10:04.7]} 5...
Bd6 {[%clk 0:09:50.2]} 6. O-O {[%clk 0:10:04.8]} 6... O-O {[%clk 0:09:44.7]} 7.
Qe2 {[%clk 0:09:59.6]} 7... h6 {[%clk 0:09:27.7]} 8. c3 {[%clk 0:09:46.4]} 8...
Re8 {[%clk 0:09:26.2]} 9. Nbd2 {[%clk 0:09:46.5]} 9... Nbd7 {[%clk 0:09:24]} 10.
Re1 {[%clk 0:09:44.6]} 10... Nc5 {[%clk 0:09:22.7]} 11. Bc2 {[%clk 0:09:45.1]}
11... Ne6 {[%clk 0:09:23.5]} 12. Nf1 {[%clk 0:09:44.8]} 12... Bc7 {[%clk
0:09:09.6]} 13. h3 {[%clk 0:09:16.6]} 13... a5 {[%clk 0:09:02.1]} 14. a4 {[%clk
0:09:15.8]} 14... d4 {[%clk 0:08:57.6]} 15. N3h2 {[%clk 0:08:45.8]} 15... b5
{[%clk 0:08:48.1]} 16. Ng3 {[%clk 0:08:32.3]} 16... dxc3 {[%clk 0:08:46.9]} 17.
bxc3 {[%clk 0:08:30.1]} 17... b4 {[%clk 0:08:48.1]} 18. Bb2 {[%clk 0:08:06.9]}
18... Nf4 {[%clk 0:08:46.8]} 19. Qf3 {[%clk 0:08:05.5]} 19... Nh7 {[%clk
0:08:42.9]} 20. Nf5 {[%clk 0:07:27.7]} 20... Ng5 {[%clk 0:08:37.2]} 21. Qd1
{[%clk 0:06:44.6]} 21... Bxf5 {[%clk 0:08:26.9]} 22. exf5 {[%clk 0:06:44.8]}
22... Qd5 {[%clk 0:08:27.5]} 23. Qg4 {[%clk 0:06:40.5]} 23... bxc3 {[%clk
0:08:19.1]} 24. Ba3 {[%clk 0:06:09]} 24... Nh7 {[%clk 0:07:57.5]} 25. Nf3 {[%clk
0:05:55.5]} 25... Nf6 {[%clk 0:07:54.1]} 26. Qh4 {[%clk 0:05:56.6]} 26... Nxd3
{[%clk 0:07:52.1]} 27. Re3 {[%clk 0:04:50.6]} 27... e4 {[%clk 0:07:49.7]} 28.
Ne1 {[%clk 0:04:46.8]} 28... Bb6 {[%clk 0:07:44.1]} 29. Re2 {[%clk 0:04:21]}
29... Qxf5 {[%clk 0:07:42.2]} 30. Rd1 {[%clk 0:04:16.6]} 30... Nf4 {[%clk
0:07:40.6]} 0-1

[Event "GrandPrix_29.05"]
[Site "Chess.com"]
[Date "2020.05.29"]
[Round "3"]
[White "Pierluigi15"]
[Black "CHESSMASTER759"]
[Result "1-0"]
[WhiteElo "2467"]
[BlackElo "2127"]
[TimeControl "600+2"]
[EndTime "10:15:32 PDT"]
[Termination "Pierluigi15 won by resignation"]

1. d4 {[%clk 0:10:01.9]} 1... Nf6 {[%clk 0:09:59.5]} 2. c4 {[%clk 0:09:58.3]}
2... e6 {[%clk 0:09:57.9]} 3. Nc3 {[%clk 0:09:57.6]} 3... d5 {[%clk 0:09:57]} 4.
Nf3 {[%clk 0:09:54.2]} 4... c5 {[%clk 0:09:55.4]} 5. cxd5 {[%clk 0:09:53.1]}
5... Nxd5 {[%clk 0:09:56]} 6. e4 {[%clk 0:09:53.7]} 6... Nxc3 {[%clk 0:09:56.8]}
7. bxc3 {[%clk 0:09:55.6]} 7... cxd4 {[%clk 0:09:57.2]} 8. cxd4 {[%clk
0:09:57.5]} 8... Bb4+ {[%clk 0:09:58.1]} 9. Bd2 {[%clk 0:09:59.1]} 9... Bxd2+
{[%clk 0:09:59.6]} 10. Qxd2 {[%clk 0:10:00.5]} 10... O-O {[%clk 0:10:01.2]} 11.
Bc4 {[%clk 0:10:00.5]} 11... Nd7 {[%clk 0:10:02.5]} 12. O-O {[%clk 0:09:55.4]}
12... b6 {[%clk 0:10:02.8]} 13. Rad1 {[%clk 0:09:55.8]} 13... Bb7 {[%clk
0:10:01.7]} 14. Rfe1 {[%clk 0:09:57]} 14... Rc8 {[%clk 0:10:01.2]} 15. Bb3
{[%clk 0:09:58.2]} 15... h6 {[%clk 0:10:00.7]} 16. h3 {[%clk 0:09:58.3]} 16...
Nf6 {[%clk 0:09:46.3]} 17. d5 {[%clk 0:09:54.2]} 17... exd5 {[%clk 0:09:30.9]}
18. exd5 {[%clk 0:09:56.1]} 18... Qd6 {[%clk 0:09:12.8]} 19. Nd4 {[%clk
0:09:43.6]} 19... Rfe8 {[%clk 0:09:09.1]} 20. Nf5 {[%clk 0:09:00.9]} 20... Qd7
{[%clk 0:09:07.9]} 21. Qf4 {[%clk 0:08:19.8]} 21... Rxe1+ {[%clk 0:08:18.7]} 22.
Rxe1 {[%clk 0:08:19.5]} 22... Re8 {[%clk 0:08:20.1]} 23. Rxe8+ {[%clk
0:08:17.8]} 23... Nxe8 {[%clk 0:08:18.7]} 24. d6 {[%clk 0:07:30]} 24... Kf8
{[%clk 0:07:52.6]} 25. Qe5 {[%clk 0:07:16]} 25... Bc6 {[%clk 0:07:01.2]} 26. g4
{[%clk 0:06:47.9]} 26... Qd8 {[%clk 0:06:37.5]} 27. h4 {[%clk 0:06:28]} 27...
Qf6 {[%clk 0:06:30.8]} 28. Qe7+ {[%clk 0:06:28.7]} 28... Qxe7 {[%clk 0:06:22.2]}
29. dxe7+ {[%clk 0:06:30.6]} 29... Kg8 {[%clk 0:06:23]} 30. g5 {[%clk
0:06:32.3]} 30... Bd7 {[%clk 0:06:18.1]} 31. g6 {[%clk 0:06:25.6]} 31... Be6
{[%clk 0:06:07.5]} 32. Bxe6 {[%clk 0:05:44.4]} 32... fxe6 {[%clk 0:06:05.9]} 33.
Nd4 {[%clk 0:05:45.9]} 33... e5 {[%clk 0:06:00.1]} 34. Nc6 {[%clk 0:05:45.1]}
1-0

[Event "GrandPrix_29.05"]
[Site "Chess.com"]
[Date "2020.05.29"]
[Round "3"]
[White "StephenDedalus83"]
[Black "Arasvard"]
[Result "1-0"]
[WhiteElo "2118"]
[BlackElo "2069"]
[TimeControl "600+2"]
[EndTime "10:15:40 PDT"]
[Termination "StephenDedalus83 won by resignation"]

1. e4 {[%clk 0:10:01.9]} 1... c5 {[%clk 0:09:53.5]} 2. Nf3 {[%clk 0:10:01.6]}
2... d6 {[%clk 0:09:54]} 3. d4 {[%clk 0:10:01.3]} 3... cxd4 {[%clk 0:09:55.9]}
4. Nxd4 {[%clk 0:10:02.4]} 4... Nf6 {[%clk 0:09:57.3]} 5. Nc3 {[%clk 0:10:03.4]}
5... a6 {[%clk 0:09:58.9]} 6. h3 {[%clk 0:10:01]} 6... e5 {[%clk 0:09:55]} 7.
Nf3 {[%clk 0:10:01.2]} 7... h6 {[%clk 0:09:52.3]} 8. Bc4 {[%clk 0:10:00.5]} 8...
Be6 {[%clk 0:09:43.3]} 9. Qe2 {[%clk 0:09:31.4]} 9... Be7 {[%clk 0:09:02.7]} 10.
O-O {[%clk 0:09:30.6]} 10... O-O {[%clk 0:08:52.1]} 11. Rd1 {[%clk 0:09:29.8]}
11... Nbd7 {[%clk 0:08:16.2]} 12. Nh2 {[%clk 0:09:26.7]} 12... Bxc4 {[%clk
0:07:58.8]} 13. Qxc4 {[%clk 0:09:26.6]} 13... b5 {[%clk 0:08:00.5]} 14. Qe2
{[%clk 0:09:26.4]} 14... Nb6 {[%clk 0:07:56.3]} 15. Ng4 {[%clk 0:09:23.4]} 15...
Nxg4 {[%clk 0:05:37.2]} 16. Qxg4 {[%clk 0:09:22.5]} 16... Qc8 {[%clk 0:05:33.9]}
17. Qg3 {[%clk 0:09:21.5]} 17... Kh7 {[%clk 0:05:27.3]} 18. Be3 {[%clk
0:09:21.2]} 18... Nc4 {[%clk 0:05:19.9]} 19. Nd5 {[%clk 0:09:21.1]} 19... Bd8
{[%clk 0:04:54.9]} 20. b3 {[%clk 0:09:18.8]} 20... Nxe3 {[%clk 0:04:46.1]} 21.
Nxe3 {[%clk 0:09:18.3]} 21... Bb6 {[%clk 0:04:31.6]} 22. Nf5 {[%clk 0:09:13.9]}
22... g6 {[%clk 0:04:32.1]} 23. Rxd6 {[%clk 0:08:50.7]} 23... gxf5 {[%clk
0:02:16.9]} 24. Rxb6 {[%clk 0:08:49.3]} 24... f4 {[%clk 0:02:17.4]} 25. Qh4
{[%clk 0:08:48.7]} 25... f6 {[%clk 0:02:18.4]} 26. Rxf6 {[%clk 0:08:48.1]} 26...
Rxf6 {[%clk 0:02:13.2]} 27. Qxf6 {[%clk 0:08:50]} 1-0

[Event "GrandPrix_29.05"]
[Site "Chess.com"]
[Date "2020.05.29"]
[Round "3"]
[White "Gabix_94"]
[Black "LuckyLuka04"]
[Result "1-0"]
[WhiteElo "2476"]
[BlackElo "2225"]
[TimeControl "600+2"]
[EndTime "10:16:06 PDT"]
[Termination "Gabix_94 won by checkmate"]

1. d4 {[%clk 0:10:00.9]} 1... Nf6 {[%clk 0:10:00.4]} 2. c4 {[%clk 0:10:01.3]}
2... a6 {[%clk 0:10:01.4]} 3. Nc3 {[%clk 0:09:39.9]} 3... c5 {[%clk 0:10:01.2]}
4. Nf3 {[%clk 0:09:39.1]} 4... cxd4 {[%clk 0:10:01.4]} 5. Nxd4 {[%clk 0:09:41]}
5... e6 {[%clk 0:10:02.7]} 6. g3 {[%clk 0:09:41]} 6... Qc7 {[%clk 0:10:00.2]} 7.
Bg2 {[%clk 0:09:41.5]} 7... Qxc4 {[%clk 0:09:55.3]} 8. O-O {[%clk 0:09:41.1]}
8... Qc7 {[%clk 0:09:55.6]} 9. e4 {[%clk 0:09:34.5]} 9... d6 {[%clk 0:09:55]}
10. Be3 {[%clk 0:09:21.9]} 10... Be7 {[%clk 0:09:54.1]} 11. Rc1 {[%clk 0:09:20]}
11... Qd8 {[%clk 0:09:50.8]} 12. Na4 {[%clk 0:08:51]} 12... O-O {[%clk
0:09:35.5]} 13. Rxc8 {[%clk 0:07:38.2]} 13... Qxc8 {[%clk 0:09:28.5]} 14. Nb6
{[%clk 0:07:37.3]} 14... Qd8 {[%clk 0:09:21.5]} 15. Nxa8 {[%clk 0:07:14.9]}
15... Nbd7 {[%clk 0:09:21.2]} 16. e5 {[%clk 0:06:15.7]} 16... dxe5 {[%clk
0:07:44.7]} 17. Nxe6 {[%clk 0:06:09.9]} 17... fxe6 {[%clk 0:07:46.6]} 18. Bxb7
{[%clk 0:06:10.1]} 18... Qb8 {[%clk 0:07:21.5]} 19. Qb3 {[%clk 0:06:05.1]} 19...
Kf7 {[%clk 0:07:09.2]} 20. Rc1 {[%clk 0:05:59.1]} 20... e4 {[%clk 0:05:48]} 21.
Nc7 {[%clk 0:05:53.3]} 21... Nc5 {[%clk 0:04:42.7]} 22. Rxc5 {[%clk 0:05:43.9]}
22... Bxc5 {[%clk 0:04:41.6]} 23. Qxe6+ {[%clk 0:05:44.8]} 23... Kg6 {[%clk
0:04:38.9]} 24. Bxe4+ {[%clk 0:05:46.3]} 24... Kh5 {[%clk 0:04:39.4]} 25. Qh3#
{[%clk 0:05:46.9]} 1-0

[Event "GrandPrix_29.05"]
[Site "Chess.com"]
[Date "2020.05.29"]
[Round "3"]
[White "payto1"]
[Black "VladimirPotkin"]
[Result "1/2-1/2"]
[WhiteElo "2172"]
[BlackElo "2061"]
[TimeControl "600+2"]
[EndTime "10:16:38 PDT"]
[Termination "Game drawn by agreement"]

1. d4 {[%clk 0:09:59.7]} 1... Nf6 {[%clk 0:08:25.4]} 2. Bg5 {[%clk 0:09:48.4]}
2... d5 {[%clk 0:08:23.9]} 3. Bxf6 {[%clk 0:09:48.3]} 3... gxf6 {[%clk
0:08:23.2]} 4. e3 {[%clk 0:09:49.2]} 4... c5 {[%clk 0:08:23]} 5. dxc5 {[%clk
0:09:49.7]} 5... Nc6 {[%clk 0:08:22.3]} 6. Nf3 {[%clk 0:09:45.4]} 6... e5 {[%clk
0:08:17.8]} 7. c4 {[%clk 0:09:18.6]} 7... d4 {[%clk 0:08:17.2]} 8. exd4 {[%clk
0:09:18.9]} 8... e4 {[%clk 0:08:17.7]} 9. Nfd2 {[%clk 0:09:18.3]} 9... Qxd4
{[%clk 0:08:16.3]} 10. Nc3 {[%clk 0:08:48.6]} 10... f5 {[%clk 0:08:16.9]} 11.
Nb3 {[%clk 0:08:43]} 11... Qe5 {[%clk 0:07:45.1]} 12. Qd5 {[%clk 0:08:14.3]}
12... Bg7 {[%clk 0:07:37]} 13. Qxe5+ {[%clk 0:08:09.5]} 13... Nxe5 {[%clk
0:07:37.3]} 14. Be2 {[%clk 0:08:01.5]} 14... O-O {[%clk 0:07:34]} 15. O-O-O
{[%clk 0:07:51.9]} 15... Be6 {[%clk 0:07:23.5]} 16. Nd5 {[%clk 0:07:51.1]} 16...
Rfd8 {[%clk 0:06:50.5]} 17. g3 {[%clk 0:07:45.3]} 17... Kf8 {[%clk 0:06:49.2]}
18. Nc7 {[%clk 0:07:35.6]} 18... Rac8 {[%clk 0:06:13.8]} 19. Nxe6+ {[%clk
0:07:31.8]} 19... fxe6 {[%clk 0:06:13.9]} 20. Rxd8+ {[%clk 0:07:26.5]} 20...
Rxd8 {[%clk 0:06:15.8]} 21. Rd1 {[%clk 0:07:27.3]} 21... Rxd1+ {[%clk
0:05:32.7]} 22. Kxd1 {[%clk 0:07:29.2]} 22... Nd7 {[%clk 0:05:32.2]} 23. Kc2
{[%clk 0:07:26.8]} 23... Ke7 {[%clk 0:05:12.5]} 24. f3 {[%clk 0:07:20.3]} 24...
Be5 {[%clk 0:04:46.8]} 25. fxe4 {[%clk 0:06:52.5]} 25... fxe4 {[%clk 0:04:48.7]}
26. Nd2 {[%clk 0:06:12]} 26... Nxc5 {[%clk 0:04:34.8]} 27. b4 {[%clk 0:06:12]}
1/2-1/2

[Event "GrandPrix_29.05"]
[Site "Chess.com"]
[Date "2020.05.29"]
[Round "3"]
[White "Poghosyan_Suren"]
[Black "Karinaa87"]
[Result "1-0"]
[WhiteElo "2156"]
[BlackElo "1879"]
[TimeControl "600+2"]
[EndTime "10:16:43 PDT"]
[Termination "Poghosyan_Suren won by resignation"]

1. d4 {[%clk 0:10:01.9]} 1... Nf6 {[%clk 0:09:53.9]} 2. c4 {[%clk 0:09:58.6]}
2... e6 {[%clk 0:09:46.6]} 3. Nc3 {[%clk 0:09:58.4]} 3... Bb4 {[%clk 0:09:46.7]}
4. e3 {[%clk 0:09:58.8]} 4... O-O {[%clk 0:09:43.5]} 5. Ne2 {[%clk 0:09:58.6]}
5... b6 {[%clk 0:09:30.3]} 6. a3 {[%clk 0:09:45]} 6... Be7 {[%clk 0:09:26.4]} 7.
d5 {[%clk 0:09:45.4]} 7... e5 {[%clk 0:09:18]} 8. g3 {[%clk 0:09:43.4]} 8... d6
{[%clk 0:09:17.4]} 9. Bg2 {[%clk 0:09:44.7]} 9... a5 {[%clk 0:09:17.5]} 10. O-O
{[%clk 0:09:44.1]} 10... Bd7 {[%clk 0:09:18.5]} 11. b3 {[%clk 0:09:43.6]} 11...
Qc8 {[%clk 0:09:13.2]} 12. f4 {[%clk 0:09:41.3]} 12... Bh3 {[%clk 0:09:07.7]}
13. e4 {[%clk 0:09:11.6]} 13... Bxg2 {[%clk 0:09:06.2]} 14. Kxg2 {[%clk
0:09:13.5]} 14... exf4 {[%clk 0:09:05]} 15. gxf4 {[%clk 0:09:06.6]} 15... Nbd7
{[%clk 0:08:54.3]} 16. Ng3 {[%clk 0:08:59.8]} 16... Nc5 {[%clk 0:08:17.4]} 17.
e5 {[%clk 0:08:36.9]} 17... dxe5 {[%clk 0:08:02.3]} 18. fxe5 {[%clk 0:08:38.8]}
18... Ng4 {[%clk 0:08:01.4]} 19. Nf5 {[%clk 0:08:30.2]} 19... Qe8 {[%clk
0:06:38.2]} 20. Qxg4 {[%clk 0:08:17.2]} 20... g6 {[%clk 0:06:37.6]} 21. Bh6
{[%clk 0:08:09.8]} 21... Kh8 {[%clk 0:06:37]} 22. Bg7+ {[%clk 0:07:42.1]} 22...
Kg8 {[%clk 0:06:37.1]} 23. Bxf8 {[%clk 0:07:42.4]} 23... Bxf8 {[%clk 0:06:36.3]}
24. Rae1 {[%clk 0:07:41]} 24... Kh8 {[%clk 0:06:24.8]} 25. Ng3 {[%clk
0:07:37.8]} 25... Nd3 {[%clk 0:06:23.9]} 26. e6 {[%clk 0:05:04.6]} 26... Nxe1+
{[%clk 0:06:17.2]} 27. Rxe1 {[%clk 0:05:06.5]} 27... Bg7 {[%clk 0:05:59.2]} 28.
Nb5 {[%clk 0:05:04.3]} 28... Qe7 {[%clk 0:05:47.3]} 29. Qf4 {[%clk 0:04:54.9]}
29... Rc8 {[%clk 0:05:38.8]} 30. Qxf7 {[%clk 0:04:52.7]} 30... Qg5 {[%clk
0:05:33.3]} 31. e7 {[%clk 0:04:50.5]} 1-0

[Event "GrandPrix_29.05"]
[Site "Chess.com"]
[Date "2020.05.29"]
[Round "3"]
[White "cantdefyme"]
[Black "Gurvich_Vitaly"]
[Result "0-1"]
[WhiteElo "2095"]
[BlackElo "2357"]
[TimeControl "600+2"]
[EndTime "10:16:53 PDT"]
[Termination "Gurvich_Vitaly won by resignation"]

1. e4 {[%clk 0:10:01.9]} 1... c5 {[%clk 0:09:59]} 2. Nf3 {[%clk 0:10:02.4]} 2...
Nc6 {[%clk 0:09:59.2]} 3. d4 {[%clk 0:10:03.4]} 3... cxd4 {[%clk 0:10:00.2]} 4.
Nxd4 {[%clk 0:10:04.9]} 4... e5 {[%clk 0:10:00.4]} 5. Nb5 {[%clk 0:10:05]} 5...
d6 {[%clk 0:10:00.7]} 6. c4 {[%clk 0:10:06.3]} 6... Be7 {[%clk 0:09:59.4]} 7.
N5c3 {[%clk 0:10:07.6]} 7... Nf6 {[%clk 0:09:57.9]} 8. Be2 {[%clk 0:10:08.1]}
8... O-O {[%clk 0:09:59.2]} 9. O-O {[%clk 0:10:08.9]} 9... Be6 {[%clk
0:10:00.8]} 10. Be3 {[%clk 0:10:09.6]} 10... Rc8 {[%clk 0:10:01.2]} 11. f3
{[%clk 0:09:46.5]} 11... Nh5 {[%clk 0:09:55.7]} 12. Nd5 {[%clk 0:09:43.9]} 12...
Bg5 {[%clk 0:09:55.1]} 13. Nbc3 {[%clk 0:09:18.3]} 13... Bxd5 {[%clk 0:08:49.7]}
14. Bxg5 {[%clk 0:09:15.8]} 14... Qxg5 {[%clk 0:08:48.7]} 15. Nxd5 {[%clk
0:09:13.5]} 15... Nd4 {[%clk 0:08:44.8]} 16. Kh1 {[%clk 0:09:00.3]} 16... Nf4
{[%clk 0:08:22.6]} 17. Nxf4 {[%clk 0:08:59]} 17... Qxf4 {[%clk 0:08:24.5]} 18.
Rf2 {[%clk 0:08:37.7]} 18... a6 {[%clk 0:08:18.1]} 19. a4 {[%clk 0:08:35.1]}
19... a5 {[%clk 0:08:17.8]} 20. Bf1 {[%clk 0:08:34.4]} 20... Rc6 {[%clk
0:08:16.8]} 21. Qe1 {[%clk 0:08:12.5]} 21... Ra8 {[%clk 0:07:46]} 22. b4 {[%clk
0:08:06]} 22... b6 {[%clk 0:07:15.4]} 23. bxa5 {[%clk 0:07:29.2]} 23... Rxa5
{[%clk 0:06:59.4]} 24. Qb4 {[%clk 0:07:22.1]} 24... h5 {[%clk 0:06:54.2]} 25.
Qc3 {[%clk 0:06:47.4]} 25... h4 {[%clk 0:06:52.8]} 26. Rb2 {[%clk 0:06:39.8]}
26... h3 {[%clk 0:06:49.1]} 27. g3 {[%clk 0:06:27.6]} 27... Qxf3+ {[%clk
0:06:46.1]} 28. Qxf3 {[%clk 0:06:27.8]} 28... Nxf3 {[%clk 0:06:48]} 29. Bxh3
{[%clk 0:06:28.9]} 29... Rxc4 {[%clk 0:06:45.9]} 30. Rxb6 {[%clk 0:06:29.2]}
30... Rcxa4 {[%clk 0:06:44.6]} 31. Rxa4 {[%clk 0:06:27.3]} 31... Rxa4 {[%clk
0:06:46.5]} 32. Rxd6 {[%clk 0:06:24.5]} 32... Ra2 {[%clk 0:05:27.7]} 33. Bg2
{[%clk 0:05:47.7]} 33... Ra1+ {[%clk 0:05:21]} 34. Bf1 {[%clk 0:05:48.5]} 34...
Rxf1+ {[%clk 0:05:21.7]} 35. Kg2 {[%clk 0:05:49.1]} 35... Nxh2 {[%clk
0:05:22.8]} 36. Kxh2 {[%clk 0:05:49.5]} 36... Re1 {[%clk 0:05:23.7]} 0-1

[Event "GrandPrix_29.05"]
[Site "Chess.com"]
[Date "2020.05.29"]
[Round "3"]
[White "AsadliVugar"]
[Black "ValeriyGrinev"]
[Result "1/2-1/2"]
[WhiteElo "2173"]
[BlackElo "2055"]
[TimeControl "600+2"]
[EndTime "10:17:03 PDT"]
[Termination "Game drawn by repetition"]

1. e4 {[%clk 0:10:01.9]} 1... c5 {[%clk 0:09:59.4]} 2. Nc3 {[%clk 0:10:00.1]}
2... e6 {[%clk 0:09:59.3]} 3. Nf3 {[%clk 0:09:51.4]} 3... a6 {[%clk 0:09:58.1]}
4. g3 {[%clk 0:09:51.7]} 4... b5 {[%clk 0:09:58.3]} 5. Bg2 {[%clk 0:09:52.2]}
5... Bb7 {[%clk 0:09:59.9]} 6. d4 {[%clk 0:09:53.8]} 6... cxd4 {[%clk
0:10:00.6]} 7. Nxd4 {[%clk 0:09:55.4]} 7... Nf6 {[%clk 0:10:01.8]} 8. O-O {[%clk
0:09:56.6]} 8... b4 {[%clk 0:10:02.8]} 9. Na4 {[%clk 0:09:57.9]} 9... Bxe4
{[%clk 0:09:54.4]} 10. Bxe4 {[%clk 0:09:40.1]} 10... Nxe4 {[%clk 0:09:56.3]} 11.
Re1 {[%clk 0:09:41.5]} 11... Nc5 {[%clk 0:09:55.5]} 12. c3 {[%clk 0:09:29.9]}
12... Nxa4 {[%clk 0:07:08.6]} 13. Qxa4 {[%clk 0:09:28.9]} 13... bxc3 {[%clk
0:07:06.7]} 14. Nxe6 {[%clk 0:08:38]} 14... fxe6 {[%clk 0:07:06]} 15. Rxe6+
{[%clk 0:08:39.7]} 15... Kf7 {[%clk 0:07:07.3]} 16. Re1 {[%clk 0:08:11.4]} 16...
Be7 {[%clk 0:06:28.1]} 17. bxc3 {[%clk 0:07:12.7]} 17... Re8 {[%clk 0:05:54.6]}
18. Qe4 {[%clk 0:06:05.6]} 18... Nc6 {[%clk 0:05:45.1]} 19. Qxh7 {[%clk
0:06:00.4]} 19... Bf6 {[%clk 0:04:42.1]} 20. Qh5+ {[%clk 0:06:01.4]} 20... Kg8
{[%clk 0:04:41.8]} 21. Qd5+ {[%clk 0:06:02.1]} 21... Kh8 {[%clk 0:04:38.1]} 22.
Qh5+ {[%clk 0:06:02.6]} 22... Kg8 {[%clk 0:04:39.3]} 23. Qd5+ {[%clk 0:06:04.2]}
23... Kh8 {[%clk 0:03:38.4]} 24. Qh5+ {[%clk 0:05:49.4]} 24... Kg8 {[%clk
0:03:37.9]} 1/2-1/2

[Event "GrandPrix_29.05"]
[Site "Chess.com"]
[Date "2020.05.29"]
[Round "3"]
[White "Chepaschess"]
[Black "Novoselski"]
[Result "1-0"]
[WhiteElo "2668"]
[BlackElo "2317"]
[TimeControl "600+2"]
[EndTime "10:17:09 PDT"]
[Termination "Chepaschess won by resignation"]

1. Nf3 {[%clk 0:10:01.9]} 1... e6 {[%clk 0:09:57.5]} 2. c4 {[%clk 0:09:59.7]}
2... f5 {[%clk 0:09:53.7]} 3. g3 {[%clk 0:09:57.8]} 3... Nf6 {[%clk 0:09:54.2]}
4. Bg2 {[%clk 0:09:59.2]} 4... Be7 {[%clk 0:09:55.1]} 5. O-O {[%clk 0:09:59.4]}
5... O-O {[%clk 0:09:55.6]} 6. d3 {[%clk 0:09:42.8]} 6... c5 {[%clk 0:09:52.6]}
7. Nc3 {[%clk 0:09:35.9]} 7... Nc6 {[%clk 0:09:53.1]} 8. d4 {[%clk 0:09:29.9]}
8... Ne4 {[%clk 0:09:38.7]} 9. Qd3 {[%clk 0:08:44.6]} 9... Nxc3 {[%clk
0:09:12.4]} 10. bxc3 {[%clk 0:08:30.4]} 10... d6 {[%clk 0:08:55.6]} 11. e4
{[%clk 0:08:03.4]} 11... e5 {[%clk 0:08:53.8]} 12. dxe5 {[%clk 0:07:38.5]} 12...
dxe5 {[%clk 0:08:42.9]} 13. Qd5+ {[%clk 0:07:37.8]} 13... Kh8 {[%clk 0:07:54.9]}
14. Re1 {[%clk 0:07:32.5]} 14... f4 {[%clk 0:07:47.5]} 15. Nxe5 {[%clk
0:07:04.2]} 15... Nxe5 {[%clk 0:07:37.8]} 16. Qxe5 {[%clk 0:07:06.1]} 16... f3
{[%clk 0:07:35.5]} 17. Bf1 {[%clk 0:07:01]} 17... Bf6 {[%clk 0:07:35.2]} 18.
Qxc5 {[%clk 0:06:52.7]} 18... Bxc3 {[%clk 0:07:31.5]} 19. Ba3 {[%clk 0:06:35.4]}
19... Re8 {[%clk 0:07:13.4]} 20. Rad1 {[%clk 0:06:28.7]} 20... Qb6 {[%clk
0:06:30.8]} 21. Re3 {[%clk 0:06:14.8]} 21... Be5 {[%clk 0:06:05.4]} 22. h3
{[%clk 0:05:28.1]} 22... Qh6 {[%clk 0:05:42.1]} 23. Qxe5 {[%clk 0:05:03]} 23...
Bxh3 {[%clk 0:05:39.3]} 24. Qf4 {[%clk 0:04:57.4]} 1-0

[Event "GrandPrix_29.05"]
[Site "Chess.com"]
[Date "2020.05.29"]
[Round "3"]
[White "Doukis"]
[Black "anesar92"]
[Result "1/2-1/2"]
[WhiteElo "2244"]
[BlackElo "2157"]
[TimeControl "600+2"]
[EndTime "10:17:09 PDT"]
[Termination "Game drawn by repetition"]

1. d4 {[%clk 0:10:01.9]} 1... Nf6 {[%clk 0:09:58.5]} 2. c4 {[%clk 0:10:02.5]}
2... e6 {[%clk 0:09:59.2]} 3. Nc3 {[%clk 0:10:02.9]} 3... Bb4 {[%clk 0:09:58.6]}
4. a3 {[%clk 0:10:04]} 4... Bxc3+ {[%clk 0:09:53]} 5. bxc3 {[%clk 0:10:05.9]}
5... O-O {[%clk 0:09:53.9]} 6. e3 {[%clk 0:10:05.5]} 6... d6 {[%clk 0:09:51.6]}
7. Bd3 {[%clk 0:10:05.4]} 7... e5 {[%clk 0:09:52.7]} 8. Ne2 {[%clk 0:10:04.5]}
8... e4 {[%clk 0:09:43.6]} 9. Bb1 {[%clk 0:10:03.8]} 9... Re8 {[%clk 0:09:43.6]}
10. O-O {[%clk 0:10:00.5]} 10... Nc6 {[%clk 0:09:40.3]} 11. Ng3 {[%clk
0:09:50.9]} 11... Na5 {[%clk 0:09:32.8]} 12. f3 {[%clk 0:09:15.3]} 12... exf3
{[%clk 0:09:24.8]} 13. Qxf3 {[%clk 0:09:16.7]} 13... Bg4 {[%clk 0:07:47.8]} 14.
Qf4 {[%clk 0:08:28.6]} 14... Be6 {[%clk 0:07:27.9]} 15. d5 {[%clk 0:06:40.3]}
15... Bd7 {[%clk 0:07:26.5]} 16. Qh4 {[%clk 0:05:29.8]} 16... Nb3 {[%clk
0:07:11.9]} 17. Nh5 {[%clk 0:04:50.3]} 17... Nxh5 {[%clk 0:07:04.4]} 18. Bxh7+
{[%clk 0:04:47.1]} 18... Kxh7 {[%clk 0:06:09.9]} 19. Qxh5+ {[%clk 0:04:46.3]}
19... Kg8 {[%clk 0:06:10.8]} 20. Qxf7+ {[%clk 0:04:45.7]} 20... Kh7 {[%clk
0:06:09.7]} 21. Qh5+ {[%clk 0:03:09.3]} 21... Kg8 {[%clk 0:06:09]} 22. Qf7+
{[%clk 0:03:09]} 22... Kh7 {[%clk 0:06:08.9]} 23. Qh5+ {[%clk 0:03:09.5]} 23...
Kg8 {[%clk 0:06:09.7]} 24. Qf7+ {[%clk 0:03:10.7]} 1/2-1/2